[Event "*** Titled Tuesday Blitz"]
[Site "Chess.com"]
[Date "2021.03.16"]
[Round "4"]
[White "AvitalBor"]
[Black "Taran2004"]
[Result "0-1"]
[WhiteElo "2636"]
[BlackElo "2439"]
[TimeControl "180+1"]
[EndTime "10:37:45 PDT"]
[Termination "Taran2004 won by resignation"]

1. c4 {[%clk 0:03:00.9]} 1... Nf6 {[%clk 0:03:00]} 2. Nc3 {[%clk 0:03:00.7]}
2... g6 {[%clk 0:03:00.6]} 3. e4 {[%clk 0:03:00.6]} 3... Bg7 {[%clk 0:03:00.2]}
4. d4 {[%clk 0:03:00.4]} 4... O-O {[%clk 0:02:59.3]} 5. h3 {[%clk 0:03:00.9]}
5... d6 {[%clk 0:02:59.5]} 6. Be3 {[%clk 0:03:00.7]} 6... c5 {[%clk 0:02:56.8]}
7. Nf3 {[%clk 0:03:00.2]} 7... cxd4 {[%clk 0:02:54]} 8. Nxd4 {[%clk 0:03:01.1]}
8... Nc6 {[%clk 0:02:54.5]} 9. Be2 {[%clk 0:02:59.7]} 9... Qc7 {[%clk
0:02:54.7]} 10. O-O {[%clk 0:02:58.3]} 10... a6 {[%clk 0:02:55.2]} 11. Rc1
{[%clk 0:02:57.8]} 11... Nxd4 {[%clk 0:02:55.1]} 12. Bxd4 {[%clk 0:02:57.9]}
12... Be6 {[%clk 0:02:55.7]} 13. Nd5 {[%clk 0:02:55.2]} 13... Bxd5 {[%clk
0:02:44.3]} 14. cxd5 {[%clk 0:02:56.1]} 14... Qd7 {[%clk 0:02:42.7]} 15. Qd3
{[%clk 0:02:42.1]} 15... Rac8 {[%clk 0:02:38.5]} 16. Be3 {[%clk 0:02:34.2]}
16... Qa4 {[%clk 0:02:27.9]} 17. Bf3 {[%clk 0:01:50.5]} 17... Qxa2 {[%clk
0:02:16.4]} 18. e5 {[%clk 0:01:46.7]} 18... dxe5 {[%clk 0:02:11.4]} 19. d6
{[%clk 0:01:46.9]} 19... exd6 {[%clk 0:02:03.7]} 20. Rxc8 {[%clk 0:01:46]} 20...
Rxc8 {[%clk 0:02:04.6]} 21. Bxb7 {[%clk 0:01:46]} 21... Rb8 {[%clk 0:01:52.1]}
22. Bxa6 {[%clk 0:01:43.2]} 22... Qd5 {[%clk 0:01:39.6]} 23. Qa3 {[%clk
0:01:29]} 23... Qe6 {[%clk 0:01:23]} 24. b4 {[%clk 0:01:25.1]} 24... d5 {[%clk
0:00:46.8]} 25. Bc5 {[%clk 0:01:23.1]} 25... Ne4 {[%clk 0:00:45.5]} 26. Rc1
{[%clk 0:01:09.2]} 26... Nxc5 {[%clk 0:00:44.3]} 27. bxc5 {[%clk 0:01:10.1]}
27... Qc6 {[%clk 0:00:40.8]} 28. Qa5 {[%clk 0:00:44]} 28... Ra8 {[%clk
0:00:33.7]} 29. Qb6 {[%clk 0:00:38.7]} 29... Rxa6 {[%clk 0:00:33.3]} 30. Qb8+
{[%clk 0:00:38.2]} 30... Bf8 {[%clk 0:00:32.7]} 31. Qxe5 {[%clk 0:00:38.7]}
31... Ra5 {[%clk 0:00:24.5]} 0-1

[Event "*** Titled Tuesday Blitz"]
[Site "Chess.com"]
[Date "2021.03.16"]
[Round "4"]
[White "Alekseyviktorovich"]
[Black "Sanyura"]
[Result "0-1"]
[WhiteElo "2412"]
[BlackElo "2640"]
[TimeControl "180+1"]
[EndTime "10:37:48 PDT"]
[Termination "Sanyura won by resignation"]

1. e4 {[%clk 0:02:17.2]} 1... c5 {[%clk 0:02:58.8]} 2. a3 {[%clk 0:02:16.8]}
2... g6 {[%clk 0:02:57.6]} 3. b4 {[%clk 0:02:16.6]} 3... Bg7 {[%clk 0:02:57.6]}
4. Nc3 {[%clk 0:02:17.2]} 4... cxb4 {[%clk 0:02:57]} 5. axb4 {[%clk 0:02:17.1]}
5... Nf6 {[%clk 0:02:56]} 6. Rb1 {[%clk 0:02:15.5]} 6... d6 {[%clk 0:02:55.6]}
7. g3 {[%clk 0:02:13.1]} 7... O-O {[%clk 0:02:55.5]} 8. Bg2 {[%clk 0:02:12.7]}
8... Nc6 {[%clk 0:02:55.7]} 9. Nge2 {[%clk 0:02:11.1]} 9... Bd7 {[%clk
0:02:51.7]} 10. O-O {[%clk 0:02:08.3]} 10... Rc8 {[%clk 0:02:50.9]} 11. b5
{[%clk 0:02:01.7]} 11... Ne5 {[%clk 0:02:47.8]} 12. d3 {[%clk 0:01:58.5]} 12...
h5 {[%clk 0:02:44.1]} 13. h3 {[%clk 0:01:57.1]} 13... Nh7 {[%clk 0:02:20.2]} 14.
Nd5 {[%clk 0:01:49.9]} 14... e6 {[%clk 0:02:16.3]} 15. Ne3 {[%clk 0:01:44.5]}
15... g5 {[%clk 0:02:05.6]} 16. f4 {[%clk 0:01:42.6]} 16... Ng6 {[%clk
0:02:02.5]} 17. f5 {[%clk 0:01:31.7]} 17... Ne5 {[%clk 0:02:02.7]} 18. Bb2
{[%clk 0:01:21.6]} 18... Qb6 {[%clk 0:01:45]} 19. d4 {[%clk 0:01:15.2]} 19...
Nc4 {[%clk 0:01:39.5]} 20. Nxc4 {[%clk 0:01:15]} 20... Rxc4 {[%clk 0:01:40.4]}
21. c3 {[%clk 0:01:06.6]} 21... exf5 {[%clk 0:01:23.1]} 22. exf5 {[%clk
0:01:05]} 22... Bxb5 {[%clk 0:01:21.2]} 23. Ba3 {[%clk 0:01:04.5]} 23... Rcc8
{[%clk 0:01:06.2]} 24. Bd5 {[%clk 0:00:57.6]} 24... Bxe2 {[%clk 0:00:48.4]} 25.
Qxe2 {[%clk 0:00:52.7]} 25... Qa5 {[%clk 0:00:48.5]} 26. f6 {[%clk 0:00:41.4]}
26... Nxf6 {[%clk 0:00:37.5]} 27. Rxf6 {[%clk 0:00:40.6]} 27... Qxd5 {[%clk
0:00:22.1]} 28. Rxd6 {[%clk 0:00:37.9]} 28... Qf5 {[%clk 0:00:17]} 29. Qxh5
{[%clk 0:00:31.2]} 29... Qxb1+ {[%clk 0:00:16.8]} 30. Kg2 {[%clk 0:00:30]} 30...
Qa2+ {[%clk 0:00:16.5]} 0-1

[Event "*** Titled Tuesday Blitz"]
[Site "Chess.com"]
[Date "2021.03.16"]
[Round "4"]
[White "atwalcb"]
[Black "CraiggoryC"]
[Result "1-0"]
[WhiteElo "2540"]
[BlackElo "2279"]
[TimeControl "180+1"]
[EndTime "10:37:52 PDT"]
[Termination "atwalcb won by resignation"]

1. d4 {[%clk 0:03:00.9]} 1... Nf6 {[%clk 0:02:59.8]} 2. Bg5 {[%clk 0:03:00.7]}
2... g6 {[%clk 0:03:00.4]} 3. Bxf6 {[%clk 0:03:00.7]} 3... exf6 {[%clk
0:03:01.3]} 4. e3 {[%clk 0:03:01.2]} 4... Bg7 {[%clk 0:03:01.9]} 5. g3 {[%clk
0:03:01.5]} 5... O-O {[%clk 0:03:02.5]} 6. Bg2 {[%clk 0:03:01.8]} 6... d5 {[%clk
0:03:03.2]} 7. Ne2 {[%clk 0:03:01.2]} 7... c6 {[%clk 0:03:03.7]} 8. O-O {[%clk
0:03:00.7]} 8... f5 {[%clk 0:02:56.7]} 9. b3 {[%clk 0:03:00.7]} 9... Nd7 {[%clk
0:02:56.6]} 10. c4 {[%clk 0:03:00.3]} 10... Nf6 {[%clk 0:02:56.2]} 11. Nbc3
{[%clk 0:03:00.2]} 11... Be6 {[%clk 0:02:56.1]} 12. Qd3 {[%clk 0:02:59.4]} 12...
Ne4 {[%clk 0:02:55.3]} 13. h4 {[%clk 0:02:51.4]} 13... Re8 {[%clk 0:02:42.4]}
14. Nf4 {[%clk 0:02:50.9]} 14... Bh6 {[%clk 0:02:27.3]} 15. cxd5 {[%clk
0:02:50.3]} 15... cxd5 {[%clk 0:02:26.8]} 16. Nce2 {[%clk 0:02:22.7]} 16... Rc8
{[%clk 0:02:21.7]} 17. Rfc1 {[%clk 0:02:22.2]} 17... Qd7 {[%clk 0:02:10.1]} 18.
a4 {[%clk 0:02:16.5]} 18... Rxc1+ {[%clk 0:01:57.8]} 19. Rxc1 {[%clk 0:02:17.4]}
19... Rc8 {[%clk 0:01:57.9]} 20. Qb1 {[%clk 0:02:16.3]} 20... a5 {[%clk
0:01:41.7]} 21. Rxc8+ {[%clk 0:02:06.3]} 21... Qxc8 {[%clk 0:01:41.3]} 22. Qc1
{[%clk 0:02:06.5]} 22... Qc6 {[%clk 0:01:27.9]} 23. Qxc6 {[%clk 0:02:03.3]}
23... bxc6 {[%clk 0:01:28.8]} 24. Nxe6 {[%clk 0:02:01.6]} 24... fxe6 {[%clk
0:01:28.7]} 25. Bxe4 {[%clk 0:02:00.1]} 25... fxe4 {[%clk 0:01:24.4]} 26. Kf1
{[%clk 0:01:58.8]} 26... Bf8 {[%clk 0:01:16.6]} 27. Nc3 {[%clk 0:01:52.4]} 27...
Kf7 {[%clk 0:01:11.9]} 28. Ke2 {[%clk 0:01:51.8]} 28... Ke8 {[%clk 0:01:02.7]}
29. f3 {[%clk 0:01:45.9]} 29... Bb4 {[%clk 0:01:01.3]} 30. Nd1 {[%clk
0:01:45.4]} 30... exf3+ {[%clk 0:00:59]} 31. Kxf3 {[%clk 0:01:45.5]} 31... Ke7
{[%clk 0:00:51.6]} 32. Nf2 {[%clk 0:01:45.5]} 32... Kf6 {[%clk 0:00:46.8]} 33.
Nd3 {[%clk 0:01:45.2]} 33... Bd6 {[%clk 0:00:47.4]} 34. e4 {[%clk 0:01:38.5]}
34... e5 {[%clk 0:00:43.5]} 35. b4 {[%clk 0:01:23.4]} 35... axb4 {[%clk
0:00:40.4]} 36. dxe5+ {[%clk 0:01:18.4]} 36... Bxe5 {[%clk 0:00:39.9]} 37. Nxb4
{[%clk 0:01:16.2]} 37... dxe4+ {[%clk 0:00:36.3]} 38. Kxe4 {[%clk 0:01:17.1]}
38... Bxg3 {[%clk 0:00:34.4]} 39. a5 {[%clk 0:01:15.1]} 39... Bxh4 {[%clk
0:00:20.6]} 40. Nxc6 {[%clk 0:01:12.4]} 40... Bf2 {[%clk 0:00:12.5]} 41. Nd4
{[%clk 0:01:11.6]} 41... Bg3 {[%clk 0:00:12.6]} 42. a6 {[%clk 0:01:08.2]} 42...
Bb8 {[%clk 0:00:12.3]} 43. Nc6 {[%clk 0:01:08.5]} 43... Ba7 {[%clk 0:00:09.2]}
44. Nxa7 {[%clk 0:01:08.3]} 44... h5 {[%clk 0:00:10.1]} 45. Nc6 {[%clk
0:01:06.9]} 45... h4 {[%clk 0:00:10.2]} 46. a7 {[%clk 0:01:05.5]} 46... h3
{[%clk 0:00:10.6]} 47. Kf3 {[%clk 0:01:05.9]} 47... h2 {[%clk 0:00:10.8]} 48.
Kg2 {[%clk 0:01:06.1]} 48... h1=Q+ {[%clk 0:00:11]} 49. Kxh1 {[%clk 0:01:06.2]}
1-0

[Event "*** Titled Tuesday Blitz"]
[Site "Chess.com"]
[Date "2021.03.16"]
[Round "4"]
[White "ENajer77"]
[Black "GMJustin"]
[Result "1-0"]
[WhiteElo "2624"]
[BlackElo "2310"]
[TimeControl "180+1"]
[EndTime "10:37:55 PDT"]
[Termination "ENajer77 won on time"]

1. d4 {[%clk 0:03:00.9]} 1... Nf6 {[%clk 0:02:57.9]} 2. c4 {[%clk 0:03:00.2]}
2... e6 {[%clk 0:02:54.6]} 3. Nf3 {[%clk 0:02:59.2]} 3... d5 {[%clk 0:02:51.4]}
4. Nc3 {[%clk 0:02:58]} 4... c5 {[%clk 0:02:41.2]} 5. cxd5 {[%clk 0:02:57.2]}
5... Nxd5 {[%clk 0:02:40.5]} 6. e4 {[%clk 0:02:56.4]} 6... Nxc3 {[%clk
0:02:39.6]} 7. bxc3 {[%clk 0:02:57.1]} 7... cxd4 {[%clk 0:02:39.5]} 8. cxd4
{[%clk 0:02:57.7]} 8... Bb4+ {[%clk 0:02:39.4]} 9. Bd2 {[%clk 0:02:58.2]} 9...
Bxd2+ {[%clk 0:02:39.5]} 10. Qxd2 {[%clk 0:02:58.7]} 10... O-O {[%clk
0:02:39.2]} 11. Bc4 {[%clk 0:02:58]} 11... Nd7 {[%clk 0:02:35.9]} 12. O-O {[%clk
0:02:56.9]} 12... b6 {[%clk 0:02:27.8]} 13. d5 {[%clk 0:02:51]} 13... Nf6 {[%clk
0:02:16.4]} 14. Rfe1 {[%clk 0:02:33.2]} 14... exd5 {[%clk 0:02:01.8]} 15. exd5
{[%clk 0:02:33.2]} 15... Bb7 {[%clk 0:02:01.2]} 16. Rad1 {[%clk 0:02:32.9]}
16... Rc8 {[%clk 0:01:54.7]} 17. Bb3 {[%clk 0:02:31.3]} 17... Qd6 {[%clk
0:01:48.1]} 18. Nd4 {[%clk 0:02:30.7]} 18... g6 {[%clk 0:01:24.5]} 19. Qg5
{[%clk 0:02:23.1]} 19... Rfe8 {[%clk 0:00:25.4]} 20. Nf5 {[%clk 0:01:45.9]}
20... Qb4 {[%clk 0:00:24.6]} 21. Nh6+ {[%clk 0:01:12.3]} 21... Kg7 {[%clk
0:00:17.8]} 22. Nf5+ {[%clk 0:00:47.4]} 22... Kg8 {[%clk 0:00:17.6]} 23. Re3
{[%clk 0:00:43.9]} 23... Ne4 {[%clk 0:00:12.8]} 24. Nh6+ {[%clk 0:00:41.9]}
24... Kg7 {[%clk 0:00:09.6]} 25. Qf4 {[%clk 0:00:41.6]} 25... f5 {[%clk
0:00:02.3]} 26. Nxf5+ {[%clk 0:00:34.8]} 26... gxf5 {[%clk 0:00:02.2]} 27. Rg3+
{[%clk 0:00:32.2]} 27... Nxg3 {[%clk 0:00:01.3]} 28. Qxb4 {[%clk 0:00:26.8]} 1-0

[Event "*** Titled Tuesday Blitz"]
[Site "Chess.com"]
[Date "2021.03.16"]
[Round "4"]
[White "Ural_bogatyr"]
[Black "barbara25"]
[Result "0-1"]
[WhiteElo "2491"]
[BlackElo "2261"]
[TimeControl "180+1"]
[EndTime "10:37:59 PDT"]
[Termination "barbara25 won by resignation"]

1. e4 {[%clk 0:03:00.9]} 1... c5 {[%clk 0:02:58.7]} 2. Nf3 {[%clk 0:03:00.7]}
2... d6 {[%clk 0:02:57.7]} 3. d4 {[%clk 0:03:00.8]} 3... cxd4 {[%clk 0:02:57]}
4. Qxd4 {[%clk 0:03:01.7]} 4... Nc6 {[%clk 0:02:56.3]} 5. Bb5 {[%clk 0:03:01.9]}
5... Bd7 {[%clk 0:02:55.3]} 6. Bxc6 {[%clk 0:03:02.1]} 6... Bxc6 {[%clk
0:02:55.1]} 7. Nc3 {[%clk 0:03:02.4]} 7... Nf6 {[%clk 0:02:54.2]} 8. Bg5 {[%clk
0:03:03]} 8... e6 {[%clk 0:02:52.9]} 9. O-O-O {[%clk 0:03:03.4]} 9... Be7 {[%clk
0:02:53.1]} 10. Qd3 {[%clk 0:03:03.9]} 10... O-O {[%clk 0:02:51.7]} 11. Nd4
{[%clk 0:03:03.5]} 11... a6 {[%clk 0:02:46.2]} 12. f4 {[%clk 0:03:02.6]} 12...
Rc8 {[%clk 0:02:44.9]} 13. Kb1 {[%clk 0:03:02.1]} 13... Ne8 {[%clk 0:02:40.6]}
14. h4 {[%clk 0:02:58.7]} 14... Nf6 {[%clk 0:02:35.8]} 15. f5 {[%clk 0:02:48.9]}
15... Qd7 {[%clk 0:02:29.6]} 16. fxe6 {[%clk 0:02:39.8]} 16... fxe6 {[%clk
0:02:29]} 17. h5 {[%clk 0:02:11.9]} 17... h6 {[%clk 0:02:26.8]} 18. Bh4 {[%clk
0:02:07]} 18... b5 {[%clk 0:02:22.7]} 19. e5 {[%clk 0:01:55.2]} 19... dxe5
{[%clk 0:02:18.9]} 20. Nxc6 {[%clk 0:01:55.8]} 20... Qxc6 {[%clk 0:02:17.9]} 21.
Bxf6 {[%clk 0:01:49.7]} 21... Bxf6 {[%clk 0:02:17.2]} 22. Ne4 {[%clk 0:01:50.2]}
22... a5 {[%clk 0:02:12.2]} 23. g4 {[%clk 0:01:44.9]} 23... Qc4 {[%clk
0:01:34.2]} 24. b3 {[%clk 0:01:38]} 24... Qxd3 {[%clk 0:01:33.8]} 25. Rxd3
{[%clk 0:01:38.9]} 25... a4 {[%clk 0:01:30.3]} 26. Rhd1 {[%clk 0:01:33.1]} 26...
axb3 {[%clk 0:01:30.1]} 27. axb3 {[%clk 0:01:30.7]} 27... Bg5 {[%clk 0:01:30.2]}
28. Rd7 {[%clk 0:01:11.1]} 28... Bh4 {[%clk 0:01:22.6]} 29. Rb7 {[%clk
0:01:02.8]} 29... Rf4 {[%clk 0:01:21.4]} 30. Nd6 {[%clk 0:01:02.3]} 30... Rcf8
{[%clk 0:01:09.7]} 31. Nxb5 {[%clk 0:00:59.8]} 31... Rxg4 {[%clk 0:01:09.6]} 32.
Rdd7 {[%clk 0:00:59.3]} 32... e4 {[%clk 0:01:09.3]} 33. Nc3 {[%clk 0:00:58.5]}
33... e3 {[%clk 0:01:08.2]} 34. b4 {[%clk 0:00:53.5]} 34... Bf6 {[%clk
0:01:08.1]} 35. Ne2 {[%clk 0:00:52.9]} 35... Rg2 {[%clk 0:01:07.3]} 36. Nf4
{[%clk 0:00:48.1]} 36... Rg4 {[%clk 0:00:59]} 37. Ne2 {[%clk 0:00:43.5]} 37...
Rg2 {[%clk 0:00:58.3]} 38. Nf4 {[%clk 0:00:43.2]} 38... Rf2 {[%clk 0:00:51.2]}
39. Nd3 {[%clk 0:00:41.5]} 39... e2 {[%clk 0:00:49.7]} 40. b5 {[%clk 0:00:39.1]}
40... Rf1+ {[%clk 0:00:49.4]} 41. Ka2 {[%clk 0:00:38.7]} 41... Rd1 {[%clk
0:00:48.6]} 42. b6 {[%clk 0:00:27]} 42... Rxd3 {[%clk 0:00:48.1]} 43. Rxd3
{[%clk 0:00:27.9]} 43... e1=Q {[%clk 0:00:47.7]} 44. Kb3 {[%clk 0:00:26.9]}
44... Qb1+ {[%clk 0:00:46.9]} 45. Kc4 {[%clk 0:00:26.9]} 45... Qxc2+ {[%clk
0:00:46.9]} 0-1

[Event "*** Titled Tuesday Blitz"]
[Site "Chess.com"]
[Date "2021.03.16"]
[Round "4"]
[White "Buffy7"]
[Black "TwentyHourADay"]
[Result "1-0"]
[WhiteElo "2625"]
[BlackElo "2396"]
[TimeControl "180+1"]
[EndTime "10:38:01 PDT"]
[Termination "Buffy7 won by resignation"]

1. e4 {[%clk 0:03:00.9]} 1... c6 {[%clk 0:02:52.6]} 2. Nc3 {[%clk 0:02:59.8]}
2... d5 {[%clk 0:02:52.6]} 3. d4 {[%clk 0:03:00.7]} 3... a6 {[%clk 0:02:52.4]}
4. e5 {[%clk 0:02:59.5]} 4... Bf5 {[%clk 0:02:52.3]} 5. h4 {[%clk 0:02:59.5]}
5... h6 {[%clk 0:02:45.1]} 6. g4 {[%clk 0:02:58.5]} 6... Bd7 {[%clk 0:02:44.8]}
7. f4 {[%clk 0:02:58.1]} 7... e6 {[%clk 0:02:44.5]} 8. Nf3 {[%clk 0:02:57.8]}
8... c5 {[%clk 0:02:44.8]} 9. Be3 {[%clk 0:02:56.9]} 9... cxd4 {[%clk
0:02:43.4]} 10. Nxd4 {[%clk 0:02:57.8]} 10... Nc6 {[%clk 0:02:42.7]} 11. Qd2
{[%clk 0:02:58.1]} 11... Nxd4 {[%clk 0:02:42.6]} 12. Bxd4 {[%clk 0:02:57.9]}
12... Ne7 {[%clk 0:02:43]} 13. h5 {[%clk 0:02:52.2]} 13... Nc6 {[%clk
0:02:42.3]} 14. Bf2 {[%clk 0:02:44.1]} 14... Bb4 {[%clk 0:02:39]} 15. a3 {[%clk
0:02:43.7]} 15... Ba5 {[%clk 0:02:38.7]} 16. b4 {[%clk 0:02:40.2]} 16... Bc7
{[%clk 0:02:36.1]} 17. Bd3 {[%clk 0:02:36.6]} 17... Rc8 {[%clk 0:02:26.7]} 18.
O-O {[%clk 0:02:20.2]} 18... Bb6 {[%clk 0:02:18.3]} 19. Ne2 {[%clk 0:02:17]}
19... Bxf2+ {[%clk 0:02:14.8]} 20. Rxf2 {[%clk 0:02:17.9]} 20... Qh4 {[%clk
0:02:13.9]} 21. Rg2 {[%clk 0:02:17.8]} 21... f6 {[%clk 0:01:33.9]} 22. exf6
{[%clk 0:02:12.4]} 22... gxf6 {[%clk 0:01:31.8]} 23. Re1 {[%clk 0:02:03.5]}
23... Kd8 {[%clk 0:01:21]} 24. c4 {[%clk 0:01:52.3]} 24... dxc4 {[%clk
0:01:14.7]} 25. Bxc4 {[%clk 0:01:53.2]} 25... Kc7 {[%clk 0:01:14.2]} 26. Rd1
{[%clk 0:01:50.6]} 26... Rcd8 {[%clk 0:01:10.2]} 27. Qe3 {[%clk 0:01:50.9]}
27... e5 {[%clk 0:01:02.5]} 28. f5 {[%clk 0:01:49.1]} 28... Qg5 {[%clk
0:00:42.7]} 29. Qxg5 {[%clk 0:01:48.7]} 29... hxg5 {[%clk 0:00:42.9]} 30. Nc3
{[%clk 0:01:42.3]} 30... Rhf8 {[%clk 0:00:37.9]} 31. Ne2 {[%clk 0:01:08.6]}
31... Ne7 {[%clk 0:00:34.3]} 32. Rg3 {[%clk 0:01:05.7]} 32... Bc6 {[%clk
0:00:34.1]} 33. Rgd3 {[%clk 0:01:06]} 33... Rxd3 {[%clk 0:00:34]} 34. Rxd3
{[%clk 0:01:06.9]} 34... e4 {[%clk 0:00:31.8]} 35. Rd1 {[%clk 0:01:01.7]} 35...
b5 {[%clk 0:00:31.9]} 36. Bb3 {[%clk 0:01:01.2]} 36... a5 {[%clk 0:00:25.1]} 37.
Nd4 {[%clk 0:01:00.8]} 37... Ra8 {[%clk 0:00:22.8]} 38. Ne6+ {[%clk 0:00:47.4]}
38... Kb6 {[%clk 0:00:22.9]} 39. Rd8 {[%clk 0:00:46.8]} 39... Rxd8 {[%clk
0:00:18.3]} 40. Nxd8 {[%clk 0:00:47.7]} 40... axb4 {[%clk 0:00:17.7]} 41. axb4
{[%clk 0:00:47.4]} 41... Bd5 {[%clk 0:00:17.9]} 42. Bxd5 {[%clk 0:00:44.9]}
42... Nxd5 {[%clk 0:00:18.8]} 43. h6 {[%clk 0:00:45.2]} 43... e3 {[%clk
0:00:16.9]} 44. h7 {[%clk 0:00:45.4]} 44... e2 {[%clk 0:00:17.4]} 45. Kf2 {[%clk
0:00:45.2]} 1-0

[Event "*** Titled Tuesday Blitz"]
[Site "Chess.com"]
[Date "2021.03.16"]
[Round "4"]
[White "boasovietica"]
[Black "WilliamSchill"]
[Result "1-0"]
[WhiteElo "2453"]
[BlackElo "2145"]
[TimeControl "180+1"]
[EndTime "10:38:01 PDT"]
[Termination "boasovietica won by resignation"]

1. e4 {[%clk 0:03:00.9]} 1... c5 {[%clk 0:02:59.4]} 2. Nf3 {[%clk 0:03:00.6]}
2... Nc6 {[%clk 0:02:59.5]} 3. Nc3 {[%clk 0:03:00.4]} 3... e5 {[%clk 0:02:58.4]}
4. Bc4 {[%clk 0:02:58.2]} 4... Be7 {[%clk 0:02:57.2]} 5. d3 {[%clk 0:02:58.4]}
5... d6 {[%clk 0:02:52.3]} 6. Nd2 {[%clk 0:02:58.1]} 6... Nf6 {[%clk 0:02:52]}
7. Nf1 {[%clk 0:02:58.5]} 7... O-O {[%clk 0:02:51.9]} 8. Ne3 {[%clk 0:02:58.8]}
8... Be6 {[%clk 0:02:48.2]} 9. O-O {[%clk 0:02:58.9]} 9... Nd7 {[%clk
0:02:47.5]} 10. Ned5 {[%clk 0:02:58.4]} 10... Nb6 {[%clk 0:02:45.7]} 11. Nxb6
{[%clk 0:02:56.7]} 11... Qxb6 {[%clk 0:02:45]} 12. f4 {[%clk 0:02:55.4]} 12...
exf4 {[%clk 0:02:33]} 13. Rxf4 {[%clk 0:02:50.5]} 13... Ne5 {[%clk 0:02:31.1]}
14. b3 {[%clk 0:02:48.4]} 14... Bg5 {[%clk 0:02:15.9]} 15. Rf2 {[%clk
0:02:45.4]} 15... Bxc1 {[%clk 0:02:15.5]} 16. Qxc1 {[%clk 0:02:44.6]} 16... Qd8
{[%clk 0:02:09.4]} 17. h3 {[%clk 0:02:39.7]} 17... a6 {[%clk 0:02:02.3]} 18. Qf4
{[%clk 0:02:35.7]} 18... b5 {[%clk 0:01:41.9]} 19. Bd5 {[%clk 0:01:44.1]} 19...
Rb8 {[%clk 0:01:36.2]} 20. Raf1 {[%clk 0:01:36.5]} 20... b4 {[%clk 0:01:21]} 21.
Nd1 {[%clk 0:01:26.2]} 21... Bxd5 {[%clk 0:01:17.8]} 22. exd5 {[%clk 0:01:23.2]}
22... f5 {[%clk 0:01:00.2]} 23. Qd2 {[%clk 0:01:15.8]} 23... Qd7 {[%clk
0:00:51]} 24. Ne3 {[%clk 0:01:12.4]} 24... g6 {[%clk 0:00:50.8]} 25. Nc4 {[%clk
0:01:06.8]} 25... Nxc4 {[%clk 0:00:48.2]} 26. dxc4 {[%clk 0:01:05.2]} 26... Rbe8
{[%clk 0:00:46.7]} 27. Re1 {[%clk 0:01:04.3]} 27... Rxe1+ {[%clk 0:00:44.7]} 28.
Qxe1 {[%clk 0:01:04.2]} 28... Re8 {[%clk 0:00:41.5]} 29. Re2 {[%clk 0:01:04.5]}
29... Kf7 {[%clk 0:00:36.7]} 30. Kf2 {[%clk 0:01:03]} 30... Re7 {[%clk 0:00:30]}
31. Rxe7+ {[%clk 0:01:01.4]} 31... Qxe7 {[%clk 0:00:29.8]} 32. Qd2 {[%clk
0:01:01.8]} 32... Qe5 {[%clk 0:00:25.1]} 33. Kg1 {[%clk 0:01:01.4]} 33... a5
{[%clk 0:00:23.7]} 34. h4 {[%clk 0:01:00.6]} 34... Qd4+ {[%clk 0:00:11.5]} 35.
Qxd4 {[%clk 0:01:00.4]} 35... cxd4 {[%clk 0:00:11.8]} 36. Kf2 {[%clk 0:01:00.5]}
36... Kf6 {[%clk 0:00:12.1]} 37. Ke2 {[%clk 0:01:00.9]} 37... Ke5 {[%clk
0:00:12.3]} 38. g3 {[%clk 0:01:00.6]} 38... h6 {[%clk 0:00:12.5]} 39. Kd3 {[%clk
0:00:59.9]} 39... g5 {[%clk 0:00:12.7]} 40. hxg5 {[%clk 0:01:00.2]} 40... hxg5
{[%clk 0:00:12.8]} 41. Ke2 {[%clk 0:01:00.7]} 41... Ke4 {[%clk 0:00:12.9]} 42.
Kf2 {[%clk 0:00:59.8]} 42... f4 {[%clk 0:00:12.7]} 43. gxf4 {[%clk 0:00:59.7]}
43... gxf4 {[%clk 0:00:12.8]} 44. Ke2 {[%clk 0:01:00.2]} 44... f3+ {[%clk
0:00:11.7]} 45. Kf2 {[%clk 0:01:00.6]} 45... Kf4 {[%clk 0:00:10.1]} 46. c5
{[%clk 0:01:00.6]} 46... Ke5 {[%clk 0:00:06.4]} 47. c6 {[%clk 0:01:00.4]} 1-0

[Event "*** Titled Tuesday Blitz"]
[Site "Chess.com"]
[Date "2021.03.16"]
[Round "4"]
[White "Caleuche"]
[Black "katchesskat"]
[Result "1-0"]
[WhiteElo "2549"]
[BlackElo "2284"]
[TimeControl "180+1"]
[EndTime "10:38:02 PDT"]
[Termination "Caleuche won by resignation"]

1. e4 {[%clk 0:03:00.9]} 1... c5 {[%clk 0:02:34]} 2. Nf3 {[%clk 0:03:00.2]} 2...
e6 {[%clk 0:02:33.3]} 3. c3 {[%clk 0:02:59.8]} 3... a6 {[%clk 0:02:32.9]} 4. d4
{[%clk 0:02:59.6]} 4... b5 {[%clk 0:02:33.8]} 5. Bd3 {[%clk 0:02:58.5]} 5... Bb7
{[%clk 0:02:33.8]} 6. O-O {[%clk 0:02:58.2]} 6... Qc7 {[%clk 0:02:34.3]} 7. Re1
{[%clk 0:02:57.6]} 7... Nf6 {[%clk 0:02:34.4]} 8. e5 {[%clk 0:02:56.1]} 8... Nd5
{[%clk 0:02:34.2]} 9. a3 {[%clk 0:02:56.7]} 9... Be7 {[%clk 0:02:33.1]} 10. Nbd2
{[%clk 0:02:56.5]} 10... d6 {[%clk 0:02:30.9]} 11. exd6 {[%clk 0:02:56]} 11...
Bxd6 {[%clk 0:02:30.8]} 12. dxc5 {[%clk 0:02:54.3]} 12... Bxc5 {[%clk
0:02:30.1]} 13. Ne4 {[%clk 0:02:54.8]} 13... Be7 {[%clk 0:02:30.1]} 14. Bg5
{[%clk 0:02:42.2]} 14... Nf6 {[%clk 0:02:22.8]} 15. Qe2 {[%clk 0:02:38.5]} 15...
Nbd7 {[%clk 0:02:21.4]} 16. Rad1 {[%clk 0:02:37]} 16... h6 {[%clk 0:02:20.7]}
17. Bh4 {[%clk 0:02:35.7]} 17... Nd5 {[%clk 0:02:18.8]} 18. Bg3 {[%clk
0:02:33.6]} 18... Qc6 {[%clk 0:02:18.3]} 19. Nd4 {[%clk 0:02:31.8]} 19... Qb6
{[%clk 0:02:17]} 20. Qg4 {[%clk 0:02:03.2]} 20... O-O {[%clk 0:02:06.2]} 21. Bb1
{[%clk 0:01:44.7]} 21... N7f6 {[%clk 0:01:44]} 22. Qh3 {[%clk 0:01:39.7]} 22...
Nxe4 {[%clk 0:01:39.4]} 23. Bxe4 {[%clk 0:01:39]} 23... Nf6 {[%clk 0:01:39.2]}
24. Bb1 {[%clk 0:01:37.3]} 24... Bd5 {[%clk 0:01:05.8]} 25. Nf5 {[%clk 0:01:32]}
25... exf5 {[%clk 0:00:46.7]} 26. Rxe7 {[%clk 0:01:31.1]} 26... Be4 {[%clk
0:00:46]} 27. Ba2 {[%clk 0:01:23.7]} 27... Rad8 {[%clk 0:00:40.1]} 28. Re1
{[%clk 0:01:14.6]} 28... Qc5 {[%clk 0:00:35.1]} 29. Re5 {[%clk 0:01:10.7]} 29...
Qc6 {[%clk 0:00:27.3]} 30. f3 {[%clk 0:01:10.3]} 30... Bc2 {[%clk 0:00:15.7]}
31. Bf2 {[%clk 0:01:00.2]} 31... f4 {[%clk 0:00:13.4]} 32. Bd4 {[%clk
0:00:58.4]} 32... Nd5 {[%clk 0:00:09]} 33. Qh4 {[%clk 0:00:49]} 33... g5 {[%clk
0:00:06.1]} 34. Qh5 {[%clk 0:00:40.3]} 34... Kg7 {[%clk 0:00:03.1]} 35. Re6+
{[%clk 0:00:36.9]} 1-0